[Event "POL-chT 1 Liga 2019"]
[Site "Dzwirzyno"]
[Date "2019.09.15"]
[Round "9.10"]
[White "Reza, Wojciech"]
[Black "Redlich, Bogdan"]
[Result "1-0"]
[ECO "B53"]
[WhiteElo "2293"]
[BlackElo "1600"]
[Annotator "NA"]
[PlyCount "89"]
[EventDate "2019.09.07"]
[EventType "team-tourn"]
[EventCountry "POL"]
[SourceTitle "playchess.com"]
[Source "ChessBase"]
[SourceQuality "1"]
[TimeControl "40/5400+30:1800+30"]

1. e4 {[%emt 0:00:56]} c5 {[%emt 0:00:00]} 2. Nf3 {[%emt 0:00:23]} d6 {[%emt 0:00:25]} 3. d4 {[%emt 0:02:15]} cxd4 {[%emt 0:00:17]} 4. Qxd4 {[%emt 0:00:34]} Nc6 {[%emt 0:03:30]} 5. Bb5 {[%emt 0:00:33]} Bd7 {[%emt 0:01:45]} 6. Bxc6 {[%emt 0:01:57]} Bxc6 {[%emt 0:03:44]} 7. Nc3 {[%emt 0:01:29]} Nf6 {[%emt 0:01:58]} 8. Bg5 {[%emt 0:00:43]} e6 {[%emt 0:01:33]} 9. O-O-O {[%emt 0:00:40]} Be7 {[%emt 0:00:58]} 10. Rhe1 {[%emt 0:02:01]} O-O $11 {[%emt 0:01:50]} 11. Kb1 {[%emt 0:00:28]} Qa5 {[%emt 0:05:32]} 12. Qd2 {[%emt 0:01:15]} Rfd8 {[%emt 0:12:41]} 13. Nd4 {[%emt 0:17:11]} Bd7 {[%emt 0:08:27]} 14. Nd5 {[%emt 0:23:27]} Qxd2 {[%emt 0:01:20]} 15. Nxe7+ {[%emt 0:00:09]} Kf8 {[%emt 0:00:42]} 16. Bxd2 {[%emt 0:00:10]} Kxe7 {[%emt 0:00:23]} 17. Bb4 {[%emt 0:00:05]} e5 {[%emt 0:09:03]} 18. Nf5+ {[%emt 0:05:29]} Bxf5 {[%emt 0:00:35]} 19. exf5 {[%emt 0:00:02]} Ng4 {[%emt 0:07:56]} 20. f3 {[%emt 0:00:38]} a5 {[%emt 0:00:44]} 21. Ba3 {[%emt 0:03:58]} b5 {[%emt 0:00:45]} 22. c3 {[%emt 0:01:11]} Rab8 {[%emt 0:14:26]} 23. Rd4 {[%emt 0:01:08]} Nh6 {[%emt 0:03:44]} 24. Rxe5+ {[%emt 0:01:57]} Kf6 {[%emt 0:00:51]} 25. Red5 {[%emt 0:00:37]} Nxf5 {[%emt 0:02:44]} 26. Rf4 {[%emt 0:00:25]} g6 {[%emt 0:00:54]} 27. g4 {[%emt 0:00:36]} Ke6 {[%emt 0:05:49]} 28. Rd3 {[%emt 0:01:30]} Ng7 {[%emt 0:02:08]} 29. Re3+ {[%emt 0:04:39]} Kd5 {[%emt 0:00:54]} 30. Rxf7 {[%emt 0:00:20]} Ne6 {[%emt 0:00:57]} 31. b3 {[%emt 0:01:43]} Ng5 {[%emt 0:01:41]} 32. Rf4 {[%emt 0:04:02]} Rd7 {[%emt 0:02:11]} 33. c4+ {[%emt 0:10:28]} Kc6 {[%emt 0:02:15]} 34. Rd4 {[%emt 0:00:42]} b4 {[%emt 0:01:57]} 35. Bc1 {[%emt 0:00:41]} Nf7 {[%emt 0:00:41]} 36. f4 {[%emt 0:01:05]} g5 {[%emt 0:00:36]} 37. fxg5 {[%emt 0:00:28]} Nxg5 {[%emt 0:00:20]} 38. Rd5 {[%emt 0:00:30]} Nf7 {[%emt 0:00:20]} 39. Rxa5 {[%emt 0:01:38]} Ne5 {[%emt 0:00:10]} 40. h3 {[%emt 0:00:00]} Rf7 {[%emt 0:00:00]} 41. Ra6+ {[%emt 0:04:00]} Kc7 {[%emt 0:02:37]} 42. Ra7+ {[%emt 0:10:16]} Kc6 {[%emt 0:01:15]} 43. Rxf7 {[%emt 0:00:41]} Nxf7 {[%emt 0:00:10]} 44. Re7 {[%emt 0:00:57]} Ne5 {[%emt 0:01:23]} 45. Bb2 {[%emt 0:06:19]} 1-0

[Event "POL-chT 1 Liga 2019"]
[Site "Dzwirzyno"]
[Date "2019.09.15"]
[Round "9.11"]
[White "Kelm, Robert"]
[Black "Renkowski, Piotr"]
[Result "0-1"]
[ECO "D02"]
[WhiteElo "1585"]
[BlackElo "2179"]
[Annotator "NA"]
[PlyCount "92"]
[EventDate "2019.09.07"]
[EventType "team-tourn"]
[EventCountry "POL"]
[SourceTitle "playchess.com"]
[Source "ChessBase"]
[SourceQuality "1"]
[TimeControl "40/5400+30:1800+30"]

1. d4 {[%emt 0:00:00]} d5 {[%emt 0:00:00]} 2. Nf3 {[%emt 0:00:00]} c5 {[%emt 0:00:24]} 3. e3 {[%emt 0:01:22]} Nc6 {[%emt 0:00:05]} 4. c4 {[%emt 0:00:06]} e6 {[%emt 0:00:18]} 5. Nc3 {[%emt 0:00:07]} Nf6 {[%emt 0:00:04]} 6. a3 {[%emt 0:00:06]} cxd4 {[%emt 0:01:37]} 7. exd4 {[%emt 0:00:13]} Be7 {[%emt 0:01:19]} 8. Bf4 {[%emt 0:06:16]} a6 {[%emt 0:01:17]} 9. Ne5 {[%emt 0:01:01]} Qb6 {[%emt 0:05:05]} 10. Nxc6 {[%emt 0:03:26]} Qxc6 {[%emt 0:00:32]} 11. c5 {[%emt 0:00:21]} O-O {[%emt 0:05:27]} 12. Bd3 {[%emt 0:01:29]} Nd7 {[%emt 0:03:04]} 13. b4 {[%emt 0:02:19]} Bf6 {[%emt 0:00:22]} 14. Bd6 {[%emt 0:00:46]} Bxd4 {[%emt 0:06:04]} 15. Bxh7+ {[%emt 0:00:56]} Kxh7 {[%emt 0:00:05]} 16. Qxd4 {[%emt 0:00:06]} Re8 {[%emt 0:02:41]} 17. O-O {[%emt 0:00:59]} b6 {[%emt 0:12:20]} 18. f4 {[%emt 0:04:45]} Bb7 {[%emt 0:08:45]} 19. Rf3 {[%emt 0:03:03]} Rh8 {[%emt 0:00:44]} 20. Re1 {[%emt 0:00:15]} Kg8 {[%emt 0:03:16]} 21. Rg3 {[%emt 0:01:46]} Rh7 {[%emt 0:00:11]} 22. Ree3 {[%emt 0:00:08]} Rc8 {[%emt 0:11:01]} 23. Rg4 {[%emt 0:03:04]} bxc5 {[%emt 0:09:37]} 24. bxc5 {[%emt 0:00:47]} f6 {[%emt 0:03:43]} 25. Na4 {[%emt 0:07:52]} Re8 {[%emt 0:01:46]} 26. h3 {[%emt 0:07:32]} Qb5 {[%emt 0:02:29]} 27. Nc3 {[%emt 0:11:07]} Qb3 {[%emt 0:04:05]} 28. Nd1 {[%emt 0:20:57]} Qc4 {[%emt 0:02:43]} 29. Qxc4 {[%emt 0:01:18]} dxc4 {[%emt 0:00:01]} 30. f5 {[%emt 0:00:13]} e5 {[%emt 0:01:23]} 31. Rxc4 {[%emt 0:00:17]} Bc6 {[%emt 0:00:06]} 32. Rec3 {[%emt 0:02:10]} Kf7 {[%emt 0:00:33]} 33. Rg4 {[%emt 0:00:24]} Rc8 {[%emt 0:01:13]} 34. Ne3 {[%emt 0:02:06]} Rh5 {[%emt 0:03:21]} 35. Rb4 {[%emt 0:03:00]} Rg8 {[%emt 0:01:09]} 36. Nc4 {[%emt 0:02:08]} Rxf5 {[%emt 0:01:34]} 37. Na5 {[%emt 0:01:00]} Rc8 {[%emt 0:01:22]} 38. g4 {[%emt 0:03:19]} Rf3 {[%emt 0:01:12]} 39. Rbb3 {[%emt 0:05:18]} Rxc3 {[%emt 0:00:34]} 40. Rxc3 {[%emt 0:00:00]} Ke6 {[%emt 0:00:00]} 41. Kf2 {[%emt 0:06:43]} Bd5 {[%emt 0:01:44]} 42. h4 {[%emt 0:01:13]} g6 {[%emt 0:00:53]} 43. Kg3 {[%emt 0:00:38]} f5 {[%emt 0:00:42]} 44. h5 {[%emt 0:01:18]} Nf6 {[%emt 0:00:50]} 45. gxf5+ {[%emt 0:04:24]} gxf5 {[%emt 0:00:04]} 46. Rc1 {[%emt 0:00:08]} Ne4+ 0-1

[Event "POL-chT 1 Liga 2019"]
[Site "Dzwirzyno"]
[Date "2019.09.15"]
[Round "9.13"]
[White "Golubka, Petro"]
[Black "Szwed, Jacek"]
[Result "1/2-1/2"]
[ECO "C00"]
[WhiteElo "2479"]
[BlackElo "2370"]
[Annotator "ChessBase"]
[PlyCount "108"]
[EventDate "2019.09.07"]
[EventType "team-tourn"]
[EventCountry "POL"]
[SourceTitle "playchess.com"]
[Source "ChessBase"]
[SourceQuality "1"]
[TimeControl "40/5400+30:1800+30"]

1. e4 {[%emt 0:01:33]} e6 {[%emt 0:00:00]} 2. d4 {[%emt 0:00:08]} d5 {[%emt 0:00:00]} 3. Bd3 {[%emt 0:00:02]} c5 {[%emt 0:00:00]} 4. c3 {[%emt 0:00:04]} dxe4 {[%emt 0:00:00]} 5. Bxe4 {[%emt 0:00:03]} Nf6 {[%emt 0:00:00]} 6. Bd3 {[%emt 0:00:09]} Nc6 {[%emt 0:04:54]} 7. Nf3 {[%emt 0:00:44]} cxd4 {[%emt 0:01:38]} 8. cxd4 {[%emt 0:00:12]} Nb4 {[%emt 0:02:45]} 9. Nc3 {[%emt 0:04:55]} Nxd3+ {[%emt 0:01:07]} 10. Qxd3 {[%emt 0:00:02]} Be7 {[%emt 0:00:35]} 11. O-O {[%emt 0:00:06]} O-O {[%emt 0:00:19]} 12. Ne5 {[%emt 0:00:17]} Bd7 {[%emt 0:13:00]} 13. Qg3 {[%emt 0:00:46]} Kh8 {[%emt 0:04:58]} 14. Rd1 {[%emt 0:00:41]} Bc6 {[%emt 0:07:17]} 15. f3 {[%emt 0:11:47]} Rc8 {[%emt 0:01:51]} 16. Qf2 {[%emt 0:03:29]} Nd5 {[%emt 0:04:05]} 17. Bd2 {[%emt 0:01:38]} Nxc3 {[%emt 0:03:24]} 18. bxc3 {[%emt 0:08:42]} Bd5 {[%emt 0:01:58]} 19. a4 {[%emt 0:02:09]} b6 {[%emt 0:04:32]} 20. Qe2 {[%emt 0:03:33]} f6 {[%emt 0:06:50]} 21. Ng4 {[%emt 0:01:35]} Bc4 {[%emt 0:00:29]} 22. Qe1 {[%emt 0:00:10]} Qd7 {[%emt 0:07:02]} 23. Rdb1 {[%emt 0:01:15]} Rfd8 {[%emt 0:04:49]} 24. Rb2 {[%emt 0:01:20]} Bd6 {[%emt 0:01:45]} 25. Ne3 {[%emt 0:03:18]} Bd3 {[%emt 0:00:35]} 26. Ng4 {[%emt 0:00:38]} Re8 {[%emt 0:01:37]} 27. h3 {[%emt 0:07:06]} Bc7 {[%emt 0:03:56]} 28. f4 {[%emt 0:01:39]} Ba6 {[%emt 0:02:10]} 29. Qf2 {[%emt 0:04:46]} Qd5 {[%emt 0:00:38]} 30. Qf3 {[%emt 0:01:42]} Qxf3 {[%emt 0:04:49]} 31. gxf3 {[%emt 0:00:06]} Kg8 {[%emt 0:02:34]} 32. Kg2 {[%emt 0:00:06]} Red8 {[%emt 0:01:06]} 33. Re1 {[%emt 0:02:57]} Kf7 {[%emt 0:00:16]} 34. Nf2 {[%emt 0:00:09]} Rd5 {[%emt 0:00:54]} 35. Ne4 {[%emt 0:00:19]} Rcd8 {[%emt 0:02:14]} 36. Ra1 {[%emt 0:04:51]} Bd3 {[%emt 0:07:30]} 37. Nf2 {[%emt 0:00:44]} Bc4 {[%emt 0:00:48]} 38. Rb4 {[%emt 0:00:50]} Ba6 {[%emt 0:00:03]} 39. Ne4 {[%emt 0:00:29]} Rc8 {[%emt 0:03:32]} 40. Rb2 {[%emt 0:00:00]} Bd3 {[%emt 0:00:00]} 41. Nf2 {[%emt 0:13:58]} Bc4 {[%emt 0:03:41]} 42. Ne4 {[%emt 0:01:22]} Bd8 {[%emt 0:04:10]} 43. Be1 {[%emt 0:02:16]} Be7 {[%emt 0:02:09]} 44. Rbb1 {[%emt 0:01:57]} Ra5 {[%emt 0:06:18]} 45. Nd2 {[%emt 0:02:46]} Bd6 {[%emt 0:02:54]} 46. Bg3 {[%emt 0:00:44]} Be7 {[%emt 0:04:13]} 47. Be1 {[%emt 0:02:23]} Ke8 {[%emt 0:03:20]} 48. Kf2 {[%emt 0:01:02]} Bd6 {[%emt 0:00:51]} 49. Ke3 {[%emt 0:00:29]} Kd7 {[%emt 0:01:41]} 50. h4 {[%emt 0:04:10]} Rf5 {[%emt 0:01:14]} 51. Nxc4 {[%emt 0:00:50]} Rxc4 {[%emt 0:00:13]} 52. Rb5 {[%emt 0:00:38]} Kc6 {[%emt 0:05:03]} 53. Rxf5 {[%emt 0:02:56]} exf5 {[%emt 0:00:01]} 54. h5 {[%emt 0:00:19]} Kd5 {[%emt 0:00:27]} 1/2-1/2

[Event "POL-chT 1 Liga 2019"]
[Site "Dzwirzyno"]
[Date "2019.09.15"]
[Round "9.14"]
[White "Zylka, Stanislaw"]
[Black "Kislinsky, Alexey"]
[Result "1/2-1/2"]
[ECO "B31"]
[WhiteElo "2338"]
[BlackElo "2436"]
[Annotator "NA"]
[PlyCount "114"]
[EventDate "2019.09.07"]
[EventType "team-tourn"]
[EventCountry "POL"]
[SourceTitle "playchess.com"]
[Source "ChessBase"]
[SourceQuality "1"]
[TimeControl "40/5400+30:1800+30"]

1. e4 {[%emt 0:00:00]} c5 {[%emt 0:00:07]} 2. Nf3 {[%emt 0:00:00]} Nc6 {[%emt 0:00:06]} 3. Bb5 {[%emt 0:00:00]} g6 {[%emt 0:00:53]} 4. Bxc6 {[%emt 0:00:00]} dxc6 {[%emt 0:00:04]} 5. d3 {[%emt 0:00:06]} Bg7 {[%emt 0:00:13]} 6. h3 {[%emt 0:00:08]} b6 {[%emt 0:00:50]} 7. Nc3 {[%emt 0:00:11]} Nh6 {[%emt 0:00:20] B31: Sicilian: 2...Nc6 3 Bb5 g6} 8. Be3 {[%emt 0:00:20]} f6 {[%emt 0:00:13]} 9. Qd2 {[%emt 0:00:39]} Nf7 {[%emt 0:00:07]} 10. a3 {[%emt 0:00:18]} e5 {[%emt 0:01:03]} 11. b4 {[%emt 0:07:28]} f5 $146 {[%emt 0:01:31]} ({Predecessor:} 11... cxb4 12. axb4 O-O 13. O-O f5 14. Qe2 {0-1 (45) Lenic,L (2662)-Alekseenko,K (2609) chess.com INT 2018}) 12. Qe2 {[%emt 0:04:08]} f4 {[%emt 0:03:47]} 13. Bc1 {[%emt 0:00:12]} Qe7 {[%emt 0:02:35]} 14. bxc5 {[%emt 0:02:42]} Qxc5 {[%emt 0:01:17]} 15. Qd2 {[%emt 0:00:08]} Qd6 {[%emt 0:02:37]} 16. a4 {[%emt 0:00:26]} g5 {[%emt 0:00:56]} 17. Ba3 {[%emt 0:00:22]} Qg6 {[%emt 0:00:39]} 18. a5 {[%emt 0:04:41]} Bd7 {[%emt 0:02:20]} 19. Qc1 {[%emt 0:04:49]} Rb8 {[%emt 0:06:31]} 20. axb6 {[%emt 0:02:38]} axb6 {[%emt 0:00:08]} 21. Qb2 {[%emt 0:00:24]} h5 {[%emt 0:12:12]} 22. Nd2 {[%emt 0:05:55]} ({Much less strong is} 22. Qb4 Qf6 $14) (22. Na4 $16) 22... g4 {[%emt 0:02:51]} 23. h4 {[%emt 0:00:37]} (23. Bc5 $16) 23... Nd6 {[%emt 0:03:01]} 24. Bxd6 {[%emt 0:08:31]} Qxd6 {[%emt 0:00:07]} 25. Nc4 {[%emt 0:00:58]} Qc7 {[%emt 0:05:56]} 26. Qa3 {[%emt 0:02:36]} Rh6 {[%emt 0:03:42]} 27. Qa7 {[%emt 0:15:43]} Qxa7 {[%emt 0:00:12]} 28. Rxa7 {[%emt 0:00:05]} b5 {[%emt 0:00:09]} 29. Na5 {[%emt 0:00:05]} Bf8 {[%emt 0:00:41]} 30. Nb3 {[%emt 0:00:17]} Bb4 {[%emt 0:01:27]} 31. Kd2 {[%emt 0:02:05]} c5 {[%emt 0:00:44]} 32. Rha1 {[%emt 0:03:39]} c4 {[%emt 0:00:10]} 33. Nc1 {[%emt 0:00:42]} Rc6 {[%emt 0:01:54]} 34. Ra8 {[%emt 0:02:00]} Rbc8 {[%emt 0:00:34]} 35. Rxc8+ {[%emt 0:00:21]} Rxc8 {[%emt 0:00:17]} 36. Rb1 {[%emt 0:03:01]} Ba5 {[%emt 0:00:10]} 37. N1a2 {[%emt 0:01:29]} cxd3 {[%emt 0:05:15]} 38. cxd3 {[%emt 0:01:16]} Ke7 {[%emt 0:00:30]} 39. Nb4 $17 {[%emt 0:00:29]} Kd6 {[%emt 0:00:40]} 40. Ncd5 {[%emt 0:00:00]} Ra8 {[%emt 0:00:00]} 41. Kc2 {[%emt 0:07:30]} Bd8 {[%emt 0:03:56]} 42. g3 {[%emt 0:00:16]} Ra4 {[%emt 0:03:25]} 43. gxf4 {[%emt 0:02:24]} exf4 {[%emt 0:02:02]} 44. d4 {[%emt 0:00:22]} Bxh4 {[%emt 0:02:52]} 45. e5+ {[%emt 0:01:52]} Ke6 {[%emt 0:00:07]} 46. Nxf4+ {[%emt 0:01:49]} Kf5 {[%emt 0:00:17]} 47. Nxh5 {[%emt 0:02:29]} Kg5 {[%emt 0:03:59]} 48. Ng7 {[%emt 0:01:02]} Kg6 {[%emt 0:00:09]} 49. e6 {[%emt 0:02:40]} Bc8 {[%emt 0:00:09]} 50. Rg1 {[%emt 0:04:41]} Kxg7 {[%emt 0:03:11]} 51. Rxg4+ {[%emt 0:00:11]} Kf6 {[%emt 0:00:28]} 52. Nd5+ {[%emt 0:00:34]} Kxe6 {[%emt 0:00:16]} 53. Nf4+ {[%emt 0:01:28]} Kf5 {[%emt 0:00:31]} 54. Rxh4 {[%emt 0:00:06]} Kg5 {[%emt 0:00:53]} 55. Ng2 {[%emt 0:03:04]} Ra2+ {[%emt 0:01:23]} 56. Kc3 {[%emt 0:00:46]} Rxf2 {[%emt 0:00:15]} 57. Rh8 {[%emt 0:00:13]} Be6 {[%emt 0:08:04]} 1/2-1/2

[Event "POL-chT 1 Liga 2019"]
[Site "Dzwirzyno"]
[Date "2019.09.15"]
[Round "9.15"]
[White "Grabarczyk, Miroslaw"]
[Black "Koziol, Kamil"]
[Result "1-0"]
[ECO "A46"]
[WhiteElo "2374"]
[BlackElo "2292"]
[Annotator "NA"]
[PlyCount "119"]
[EventDate "2019.09.07"]
[EventType "team-tourn"]
[EventCountry "POL"]
[SourceTitle "playchess.com"]
[Source "ChessBase"]
[SourceQuality "1"]
[TimeControl "40/5400+30:1800+30"]

1. d4 {[%emt 0:00:00]} Nf6 {[%emt 0:00:00]} 2. Nf3 {[%emt 0:00:40]} e6 {[%emt 0:00:12]} 3. g3 {[%emt 0:00:33]} d5 {[%emt 0:01:59]} 4. Bg2 {[%emt 0:00:16]} c5 {[%emt 0:03:50]} 5. O-O {[%emt 0:02:42]} Nc6 {[%emt 0:00:37]} 6. c4 {[%emt 0:03:56]} dxc4 {[%emt 0:04:48]} 7. dxc5 {[%emt 0:04:37]} Qxd1 {[%emt 0:01:40]} 8. Rxd1 {[%emt 0:00:12]} Bxc5 {[%emt 0:01:04]} 9. Nbd2 {[%emt 0:01:25]} c3 {[%emt 0:11:36]} 10. bxc3 {[%emt 0:00:25]} O-O {[%emt 0:02:35]} 11. Nb3 {[%emt 0:03:33]} Be7 {[%emt 0:03:45]} 12. Nfd4 {[%emt 0:03:36]} Bd7 {[%emt 0:07:13]} 13. Nxc6 {[%emt 0:07:08]} Bxc6 {[%emt 0:00:43]} 14. Bxc6 {[%emt 0:00:27]} bxc6 {[%emt 0:00:06]} 15. c4 $11 {[%emt 0:06:38]} Ne4 {[%emt 0:04:57]} 16. Bb2 {[%emt 0:02:15]} Rfd8 {[%emt 0:10:23]} 17. f3 {[%emt 0:04:06]} Nc5 {[%emt 0:13:05]} 18. Ba3 {[%emt 0:17:13]} Nxb3 {[%emt 0:01:11]} 19. Bxe7 {[%emt 0:00:46]} Re8 {[%emt 0:00:42]} 20. Rab1 {[%emt 0:05:24]} Rxe7 {[%emt 0:03:26]} 21. Rxb3 {[%emt 0:01:14]} Kf8 {[%emt 0:07:10]} 22. Kf2 {[%emt 0:00:37]} e5 {[%emt 0:05:09]} 23. Rd6 {[%emt 0:05:17]} Rc7 {[%emt 0:03:07]} 24. c5 {[%emt 0:05:40]} f6 {[%emt 0:02:32]} 25. f4 {[%emt 0:06:46]} exf4 {[%emt 0:02:32]} 26. gxf4 {[%emt 0:00:08]} Re8 {[%emt 0:00:13]} 27. Kf3 {[%emt 0:02:20]} f5 {[%emt 0:00:48]} 28. Re3 {[%emt 0:07:59]} Rb8 {[%emt 0:01:01]} 29. h4 {[%emt 0:01:37]} Rb2 {[%emt 0:01:49]} 30. Re5 {[%emt 0:01:09]} g6 {[%emt 0:02:44]} 31. h5 {[%emt 0:00:31]} gxh5 {[%emt 0:03:43]} 32. Rxf5+ {[%emt 0:00:26]} Kg7 {[%emt 0:00:38]} 33. Rg5+ {[%emt 0:00:56]} Kf8 {[%emt 0:00:34]} 34. Rf6+ {[%emt 0:02:22]} Rf7 {[%emt 0:00:27]} 35. Rxc6 {[%emt 0:00:26]} Rxa2 {[%emt 0:00:12]} 36. Rc8+ {[%emt 0:02:39]} Ke7 {[%emt 0:00:05]} 37. Rxh5 {[%emt 0:00:33]} Kd7 {[%emt 0:00:48]} 38. Rh8 {[%emt 0:00:43]} Ra3+ {[%emt 0:00:29]} 39. Kg4 {[%emt 0:00:52]} Rg7+ {[%emt 0:00:53]} 40. Kf5 {[%emt 0:00:00]} Rf7+ {[%emt 0:00:00]} 41. Kg4 {[%emt 0:13:35]} Rg7+ {[%emt 0:02:33]} 42. Rg5 {[%emt 0:00:43]} Re7 {[%emt 0:00:16]} 43. e4 {[%emt 0:02:21]} Rxe4 {[%emt 0:07:01]} 44. Rxh7+ {[%emt 0:00:07]} Kc6 {[%emt 0:00:53]} 45. Rh6+ {[%emt 0:00:56]} Kb5 {[%emt 0:00:51]} 46. c6+ {[%emt 0:00:58]} Kb6 {[%emt 0:12:38]} 47. Rg7 {[%emt 0:01:10]} Re8 {[%emt 0:00:17]} 48. Rb7+ {[%emt 0:07:29]} Ka6 {[%emt 0:02:03]} 49. Rb1 {[%emt 0:03:58]} Rg8+ {[%emt 0:05:32]} 50. Kf5 {[%emt 0:01:48]} Ra5+ {[%emt 0:00:02]} 51. Ke6 {[%emt 0:00:35]} Rb5 {[%emt 0:00:50]} 52. Rxb5 {[%emt 0:00:35]} Kxb5 {[%emt 0:00:02]} 53. c7 {[%emt 0:00:11]} a5 {[%emt 0:00:37]} 54. f5 {[%emt 0:01:27]} a4 {[%emt 0:00:12]} 55. f6 {[%emt 0:00:35]} a3 {[%emt 0:01:57]} 56. Kd7 {[%emt 0:00:13]} a2 {[%emt 0:00:31]} 57. Rh1 {[%emt 0:00:08]} Rh8 {[%emt 0:00:23]} 58. Ra1 {[%emt 0:00:58]} Rh7+ {[%emt 0:00:24]} 59. Kd6 {[%emt 0:00:22]} Rh8 {[%emt 0:00:16]} 60. Rxa2 {[%emt 0:00:12]} 1-0

[Event "POL-chT 1 Liga 2019"]
[Site "Dzwirzyno"]
[Date "2019.09.15"]
[Round "9.16"]
[White "Nowak, Mikolaj"]
[Black "Sabuk, Piotr"]
[Result "1/2-1/2"]
[ECO "A20"]
[WhiteElo "2262"]
[BlackElo "2397"]
[Annotator "NA"]
[PlyCount "112"]
[EventDate "2019.09.07"]
[EventType "team-tourn"]
[EventCountry "POL"]
[SourceTitle "playchess.com"]
[Source "ChessBase"]
[SourceQuality "1"]
[TimeControl "40/5400+30:1800+30"]

1. c4 {[%emt 0:00:00]} e5 {[%emt 0:00:51]} 2. g3 {[%emt 0:00:00]} Nf6 {[%emt 0:00:14]} 3. Bg2 {[%emt 0:00:00]} d5 {[%emt 0:01:25]} 4. cxd5 {[%emt 0:00:00]} Nxd5 {[%emt 0:00:05]} 5. Nc3 {[%emt 0:00:16]} Nxc3 {[%emt 0:00:53]} 6. bxc3 {[%emt 0:00:27]} Nc6 {[%emt 0:00:05]} 7. Rb1 {[%emt 0:15:39]} Bc5 {[%emt 0:01:11]} 8. Qa4 {[%emt 0:15:02]} O-O {[%emt 0:18:55]} 9. Bxc6 {[%emt 0:05:43]} bxc6 {[%emt 0:00:46]} 10. Qxc6 {[%emt 0:00:14]} Bf5 {[%emt 0:01:53]} 11. d3 {[%emt 0:00:58]} Qe7 {[%emt 0:02:26]} 12. Bg5 {[%emt 0:07:25]} f6 {[%emt 0:14:03]} 13. Be3 {[%emt 0:00:27]} Bxe3 {[%emt 0:01:49]} 14. fxe3 {[%emt 0:00:04]} e4 {[%emt 0:04:32]} 15. Kf2 {[%emt 0:05:26]} Rfd8 {[%emt 0:12:14]} 16. Rb5 {[%emt 0:08:02]} Qe6 {[%emt 0:10:35]} 17. Qxe6+ {[%emt 0:01:57]} Bxe6 {[%emt 0:00:02]} 18. dxe4 {[%emt 0:02:20]} Rd1 {[%emt 0:01:53]} 19. Kg2 {[%emt 0:06:21]} Ra1 {[%emt 0:10:23]} 20. Ra5 {[%emt 0:01:22]} Rb8 {[%emt 0:02:00]} 21. Nf3 {[%emt 0:00:21]} Bh3+ {[%emt 0:01:23]} 22. Kxh3 {[%emt 0:00:11]} Rxh1 {[%emt 0:00:02]} 23. Rxa7 {[%emt 0:00:23]} Rb2 {[%emt 0:01:53]} 24. Kg2 {[%emt 0:11:20]} Rc1 {[%emt 0:00:26]} 25. Rxc7 {[%emt 0:04:44]} Rxe2+ {[%emt 0:00:33]} 26. Kh3 {[%emt 0:00:03]} h5 {[%emt 0:04:41]} 27. Nd4 {[%emt 0:01:02]} Rxa2 {[%emt 0:01:05]} 28. g4 {[%emt 0:03:40]} hxg4+ {[%emt 0:05:21]} 29. Kxg4 {[%emt 0:00:02]} Rxh2 {[%emt 0:00:34]} 30. e5 {[%emt 0:01:28]} Rg1+ {[%emt 0:00:58]} 31. Kf3 {[%emt 0:01:20]} fxe5 32. Nf5 {[%emt 0:00:40]} g6 {[%emt 0:01:00]} 33. Nd6 {[%emt 0:03:12]} Rh4 {[%emt 0:00:30]} 34. c4 {[%emt 0:01:18]} g5 {[%emt 0:01:31]} 35. c5 {[%emt 0:01:16]} g4+ {[%emt 0:00:13]} 36. Ke4 {[%emt 0:00:02]} g3+ {[%emt 0:00:22]} 37. Kxe5 {[%emt 0:00:10]} Rf1 {[%emt 0:00:58]} 38. Nf5 {[%emt 0:01:25]} Rh5 {[%emt 0:00:35]} 39. e4 {[%emt 0:00:33]} Rhxf5+ {[%emt 0:00:18]} 40. exf5 {[%emt 0:00:00]} g2 {[%emt 0:00:00]} 41. Rc8+ {[%emt 0:02:31]} Kf7 {[%emt 0:15:05]} 42. Rc7+ {[%emt 0:00:09]} Ke8 {[%emt 0:09:27]} 43. Rg7 {[%emt 0:01:06]} g1=Q {[%emt 0:00:05]} 44. Rxg1 {[%emt 0:00:03]} Rxg1 {[%emt 0:00:04]} 45. c6 {[%emt 0:01:13]} Rg7 {[%emt 0:06:04]} 46. f6 {[%emt 0:02:56]} Rh7 {[%emt 0:00:32]} 47. Kd6 {[%emt 0:02:48]} Ra7 {[%emt 0:00:44]} 48. Ke6 {[%emt 0:00:48]} Rc7 {[%emt 0:00:29]} 49. Kd6 {[%emt 0:02:56]} Kd8 {[%emt 0:00:10]} 50. Kd5 {[%emt 0:00:08]} Kc8 {[%emt 0:01:35]} 51. Kd6 {[%emt 0:00:10]} Ra7 {[%emt 0:00:52]} 52. Ke6 {[%emt 0:00:25]} Ra1 {[%emt 0:01:11]} 53. f7 {[%emt 0:00:34]} Rf1 {[%emt 0:00:33]} 54. Ke7 {[%emt 0:00:06]} Kc7 {[%emt 0:00:17]} 55. f8=Q {[%emt 0:00:07]} Rxf8 {[%emt 0:00:04]} 56. Kxf8 {[%emt 0:00:06]} Kxc6 1/2-1/2

[Event "POL-chT 1 Liga 2019"]
[Site "Dzwirzyno"]
[Date "2019.09.15"]
[Round "9.17"]
[White "Kucza, Karol"]
[Black "Tomaszewski, Kacper"]
[Result "1/2-1/2"]
[ECO "B48"]
[WhiteElo "2280"]
[BlackElo "2363"]
[Annotator "ChessBase"]
[PlyCount "44"]
[EventDate "2019.09.07"]
[EventType "team-tourn"]
[EventCountry "POL"]
[SourceTitle "playchess.com"]
[Source "ChessBase"]
[SourceQuality "1"]
[TimeControl "40/5400+30:1800+30"]

1. e4 {[%emt 0:00:00]} c5 {[%emt 0:00:00]} 2. Nf3 {[%emt 0:00:00]} e6 {[%emt 0:00:00]} 3. d4 {[%emt 0:00:00]} cxd4 {[%emt 0:00:00]} 4. Nxd4 {[%emt 0:00:00]} Nc6 {[%emt 0:00:00]} 5. Nc3 {[%emt 0:00:00]} Qc7 {[%emt 0:00:00]} 6. Be3 {[%emt 0:00:03]} Nf6 {[%emt 0:00:02]} 7. Qd2 {[%emt 0:00:20]} Nxd4 {[%emt 0:00:07]} 8. Bxd4 {[%emt 0:17:48]} e5 {[%emt 0:00:19]} 9. Be3 {[%emt 0:00:44]} Bb4 {[%emt 0:00:34]} 10. f3 {[%emt 0:00:19]} d6 {[%emt 0:00:11]} 11. Bb5+ {[%emt 0:17:49]} Bd7 {[%emt 0:01:00]} 12. Bxd7+ {[%emt 0:00:08]} Nxd7 {[%emt 0:00:16]} 13. a3 {[%emt 0:00:05]} Bxc3 {[%emt 0:00:18]} 14. Qxc3 {[%emt 0:00:05]} Qxc3+ {[%emt 0:00:06]} 15. bxc3 {[%emt 0:00:04]} Ke7 {[%emt 0:01:19]} 16. Kd2 {[%emt 0:00:30]} Rhc8 {[%emt 0:01:25]} 17. Rhb1 {[%emt 0:00:16]} Rc7 {[%emt 0:00:43]} 18. a4 {[%emt 0:00:57]} b6 {[%emt 0:08:29]} 19. a5 {[%emt 0:00:42]} Rb8 {[%emt 0:01:29]} 20. axb6 {[%emt 0:00:11]} axb6 {[%emt 0:00:08]} 21. Rb5 {[%emt 0:01:31]} Rcb7 {[%emt 0:02:02]} 22. Kd3 {[%emt 0:09:36]} Kd8 {[%emt 0:08:36]} 1/2-1/2